[Event "Titled Tuesday Blitz April 18 Early 2023"]
[White "Pranesh M"]
[Black "Atakishiyev, Elmar"]
[WhiteFideId "35028600"]
[BlackFideId "13410547"]
[WhiteElo "2437"]
[BlackElo "2239"]
[Result "1-0"]
[Round "04"]
[TimeControl "180+2"]
[Date "2023.04.18"]
[WhiteClock "0:00:23"]
[BlackClock "0:00:02"]

1. e4 {[%clk 0:03:00]}  c5 {[%clk 0:02:59]} 2. Nf3 {[%clk 0:03:00]}  e6 {[%clk 0:03:00]} 3. d4 {[%clk 0:03:00]}  cxd4 {[%clk 0:03:01]} 4. Nxd4 {[%clk 0:03:00]}  a6 {[%clk 0:03:02]} 5. Nc3 {[%clk 0:03:00]}  Qc7 {[%clk 0:03:02]} 6. Bd3 {[%clk 0:03:00]}  b6 {[%clk 0:02:58]} 7. O-O {[%clk 0:03:00]}  Bb7 {[%clk 0:02:59]} 8. Kh1 {[%clk 0:02:59]}  d6 {[%clk 0:02:58]} 9. f4 {[%clk 0:02:57]}  Nd7 {[%clk 0:02:58]} 10. f5 {[%clk 0:02:54]}  e5 {[%clk 0:02:58]} 11. Nb3 {[%clk 0:02:54]}  Ngf6 {[%clk 0:02:58]} 12. a4 {[%clk 0:02:52]}  Nc5 {[%clk 0:02:56]} 13. Nxc5 {[%clk 0:02:51]}  dxc5 {[%clk 0:02:56]} 14. Bg5 {[%clk 0:02:49]}  Rd8 {[%clk 0:02:53]} 15. Bxf6 {[%clk 0:02:49]}  gxf6 {[%clk 0:02:53]} 16. Qe2 {[%clk 0:02:49]}  Qc8 {[%clk 0:02:47]} 17. Bc4 {[%clk 0:02:47]}  Rd4 {[%clk 0:02:43]} 18. Nd5 {[%clk 0:02:45]}  Bxd5 {[%clk 0:02:10]} 19. Bxd5 {[%clk 0:02:46]}  h5 {[%clk 0:02:04]} 20. c3 {[%clk 0:02:45]}  Rxd5 {[%clk 0:02:04]} 21. exd5 {[%clk 0:02:46]}  Bd6 {[%clk 0:02:04]} 22. c4 {[%clk 0:02:41]}  h4 {[%clk 0:02:01]} 23. a5 {[%clk 0:02:41]}  Qc7 {[%clk 0:01:57]} 24. axb6 {[%clk 0:02:32]}  Qxb6 {[%clk 0:01:58]} 25. Rf3 {[%clk 0:02:30]}  Ke7 {[%clk 0:01:55]} 26. Rfa3 {[%clk 0:02:30]}  Rb8 {[%clk 0:01:48]} 27. R1a2 {[%clk 0:02:24]}  Ra8 {[%clk 0:01:43]} 28. h3 {[%clk 0:02:23]}  a5 {[%clk 0:01:40]} 29. Qc2 {[%clk 0:02:21]}  Bc7 {[%clk 0:01:38]} 30. Rb3 {[%clk 0:02:17]}  Qd6 {[%clk 0:01:36]} 31. Qe4 {[%clk 0:02:12]}  Kd7 {[%clk 0:01:29]} 32. Rb5 {[%clk 0:02:11]}  Rg8 {[%clk 0:01:20]} 33. Kg1 {[%clk 0:02:07]}  Rg3 {[%clk 0:01:10]} 34. Ra3 {[%clk 0:02:07]}  Rg5 {[%clk 0:00:51]} 35. Kf1 {[%clk 0:02:07]}  Kc8 {[%clk 0:00:49]} 36. Ke1 {[%clk 0:02:03]}  Kd8 {[%clk 0:00:42]} 37. Kd1 {[%clk 0:02:03]}  Ke7 {[%clk 0:00:36]} 38. Kc1 {[%clk 0:01:59]}  Kf8 {[%clk 0:00:36]} 39. Kb1 {[%clk 0:01:59]}  Qd7 {[%clk 0:00:32]} 40. Rf3 {[%clk 0:01:45]}  Bd6 {[%clk 0:00:31]} 41. Ka2 {[%clk 0:01:39]}  a4 {[%clk 0:00:30]} 42. Qxh4 {[%clk 0:01:32]}  Kg7 {[%clk 0:00:16]} 43. Qe4 {[%clk 0:01:12]}  Rxg2 {[%clk 0:00:14]} 44. Qd3 {[%clk 0:00:56]}  Kf8 {[%clk 0:00:13]} 45. Qe4 {[%clk 0:00:52]}  Rg1 {[%clk 0:00:09]} 46. Qe3 {[%clk 0:00:50]}  Rg2 {[%clk 0:00:08]} 47. Rb6 {[%clk 0:00:47]}  Qc7 {[%clk 0:00:06]} 48. Rb5 {[%clk 0:00:41]}  Qd7 {[%clk 0:00:06]} 49. Rf1 {[%clk 0:00:37]}  Ke7 {[%clk 0:00:05]} 50. Qe4 {[%clk 0:00:34]}  Rd2 {[%clk 0:00:04]} 51. Re1 {[%clk 0:00:27]}  Rd4 {[%clk 0:00:02]} 52. Qc2 {[%clk 0:00:27]}  a3 {[%clk 0:00:02]} 53. Qb3 {[%clk 0:00:27]}  Qc8 {[%clk 0:00:03]} 54. Rb7+ {[%clk 0:00:27]}  Kf8 {[%clk 0:00:03]} 55. Qb6 {[%clk 0:00:22]}  Be7 {[%clk 0:00:02]} 56. Rb8 {[%clk 0:00:23]} 1-0


[Site "https://www.chess.com"]

[Event "Titled Tuesday Blitz April 18 Early 2023"]
[White "Srihari L R"]
[Black "Alekseenko, Kirill"]
[WhiteFideId "46617116"]
[BlackFideId "4135539"]
[WhiteElo "2334"]
[BlackElo "2683"]
[Result "0-1"]
[Round "04"]
[TimeControl "180+2"]
[Date "2023.04.18"]
[WhiteClock "0:00:09"]
[BlackClock "0:00:05"]

1. d4 {[%clk 0:03:00]}  d6 {[%clk 0:03:00]} 2. Nf3 {[%clk 0:03:00]}  Nf6 {[%clk 0:02:58]} 3. g3 {[%clk 0:03:00]}  g6 {[%clk 0:02:46]} 4. Bg2 {[%clk 0:03:01]}  Bg7 {[%clk 0:02:46]} 5. O-O {[%clk 0:03:02]}  O-O {[%clk 0:02:47]} 6. c4 {[%clk 0:03:02]}  Bf5 {[%clk 0:02:45]} 7. Nc3 {[%clk 0:02:59]}  Ne4 {[%clk 0:02:44]} 8. Nd5 {[%clk 0:02:55]}  c6 {[%clk 0:02:40]} 9. Ne3 {[%clk 0:02:55]}  Bc8 {[%clk 0:02:39]} 10. Nh4 {[%clk 0:02:48]}  Nf6 {[%clk 0:02:32]} 11. Nc2 {[%clk 0:02:46]}  e5 {[%clk 0:02:24]} 12. e4 {[%clk 0:02:33]}  Nbd7 {[%clk 0:02:21]} 13. Re1 {[%clk 0:02:32]}  Re8 {[%clk 0:02:19]} 14. Nf3 {[%clk 0:02:31]}  a5 {[%clk 0:02:18]} 15. b3 {[%clk 0:02:28]}  exd4 {[%clk 0:02:13]} 16. Nfxd4 {[%clk 0:02:28]}  Nc5 {[%clk 0:02:13]} 17. f3 {[%clk 0:02:27]}  Nfd7 {[%clk 0:02:02]} 18. Bb2 {[%clk 0:02:18]}  Ne5 {[%clk 0:02:02]} 19. Bf1 {[%clk 0:02:17]}  Qb6 {[%clk 0:01:47]} 20. Rb1 {[%clk 0:02:14]}  Bd7 {[%clk 0:01:29]} 21. Kg2 {[%clk 0:02:05]}  Rad8 {[%clk 0:01:28]} 22. Qd2 {[%clk 0:02:04]}  Qc7 {[%clk 0:01:19]} 23. Bc3 {[%clk 0:02:03]}  b6 {[%clk 0:01:19]} 24. a3 {[%clk 0:01:55]}  Qc8 {[%clk 0:01:07]} 25. Ne3 {[%clk 0:01:34]}  Bh3+ {[%clk 0:01:02]} 26. Kf2 {[%clk 0:01:25]}  Nxf3 {[%clk 0:00:56]} 27. Kxf3 {[%clk 0:01:25]}  Nxe4 {[%clk 0:00:55]} 28. Qc2 {[%clk 0:01:24]}  Nxc3 {[%clk 0:00:42]} 29. Qxc3 {[%clk 0:01:24]}  c5 {[%clk 0:00:37]} 30. Bxh3 {[%clk 0:00:48]}  Qxh3 {[%clk 0:00:37]} 31. Nec2 {[%clk 0:00:48]}  cxd4 {[%clk 0:00:35]} 32. Nxd4 {[%clk 0:00:43]}  Qxh2 {[%clk 0:00:18]} 33. Qd3 {[%clk 0:00:42]}  Qh5+ {[%clk 0:00:08]} 34. Kg2 {[%clk 0:00:42]}  Qc5 {[%clk 0:00:09]} 35. Nc2 {[%clk 0:00:38]}  Qc6+ {[%clk 0:00:08]} 36. Kh2 {[%clk 0:00:36]}  Be5 {[%clk 0:00:08]} 37. Ne3 {[%clk 0:00:34]}  h5 {[%clk 0:00:08]} 38. Nd5 {[%clk 0:00:28]}  Kg7 {[%clk 0:00:09]} 39. Kg2 {[%clk 0:00:28]}  Re6 {[%clk 0:00:09]} 40. Rf1 {[%clk 0:00:27]}  Rde8 {[%clk 0:00:09]} 41. Rf3 {[%clk 0:00:27]}  f5 {[%clk 0:00:09]} 42. Re1 {[%clk 0:00:24]}  a4 {[%clk 0:00:05]} 43. b4 {[%clk 0:00:23]}  Rc8 {[%clk 0:00:05]} 44. Rc1 {[%clk 0:00:17]}  b5 {[%clk 0:00:05]} 45. Ne3 {[%clk 0:00:16]}  Bf6 {[%clk 0:00:05]} 46. c5 {[%clk 0:00:16]}  Qe4 {[%clk 0:00:03]} 47. Qxe4 {[%clk 0:00:14]}  Rxe4 {[%clk 0:00:04]} 48. Nd5 {[%clk 0:00:13]}  dxc5 {[%clk 0:00:04]} 49. bxc5 {[%clk 0:00:13]}  Rc4 {[%clk 0:00:05]} 50. Rxc4 {[%clk 0:00:11]}  bxc4 {[%clk 0:00:06]} 51. Nb6 {[%clk 0:00:09]}  Rxc5 {[%clk 0:00:06]} 52. Nxa4 {[%clk 0:00:10]}  Ra5 {[%clk 0:00:06]} 53. Nb6 {[%clk 0:00:10]}  c3 {[%clk 0:00:07]} 54. Nd7 {[%clk 0:00:09]}  c2 {[%clk 0:00:06]} 55. Nxf6 {[%clk 0:00:09]}  c1=Q {[%clk 0:00:05]} 0-1


[Site "https://www.chess.com"]

[Event "Titled Tuesday Blitz April 18 Early 2023"]
[White "Sargsyan, Shant"]
[Black "Cherniaiev, Tykhon"]
[WhiteFideId "13306766"]
[BlackFideId "14182360"]
[WhiteElo "2628"]
[BlackElo "2450"]
[Result "1-0"]
[Round "04"]
[TimeControl "180+2"]
[Date "2023.04.18"]
[WhiteClock "0:00:47"]
[BlackClock "0:00:01"]

1. g3 {[%clk 0:03:00]}  Nf6 {[%clk 0:02:58]} 2. Nf3 {[%clk 0:03:01]}  d5 {[%clk 0:02:58]} 3. Bg2 {[%clk 0:03:02]}  e6 {[%clk 0:02:58]} 4. c4 {[%clk 0:03:02]}  Be7 {[%clk 0:02:57]} 5. O-O {[%clk 0:03:02]}  d4 {[%clk 0:02:57]} 6. d3 {[%clk 0:02:59]}  c5 {[%clk 0:02:57]} 7. a3 {[%clk 0:02:58]}  a5 {[%clk 0:02:53]} 8. e3 {[%clk 0:02:58]}  Nc6 {[%clk 0:02:48]} 9. exd4 {[%clk 0:02:59]}  cxd4 {[%clk 0:02:45]} 10. Re1 {[%clk 0:02:59]}  O-O {[%clk 0:02:44]} 11. Nbd2 {[%clk 0:02:57]}  h6 {[%clk 0:02:31]} 12. Rb1 {[%clk 0:02:56]}  Bd7 {[%clk 0:02:28]} 13. Ne4 {[%clk 0:02:55]}  Nxe4 {[%clk 0:02:27]} 14. Rxe4 {[%clk 0:02:56]}  Bc5 {[%clk 0:02:07]} 15. Bd2 {[%clk 0:02:52]}  Qe7 {[%clk 0:02:04]} 16. h4 {[%clk 0:02:52]}  Rfd8 {[%clk 0:02:02]} 17. Qe1 {[%clk 0:02:49]}  a4 {[%clk 0:01:57]} 18. Re2 {[%clk 0:02:42]}  Be8 {[%clk 0:01:30]} 19. Nh2 {[%clk 0:02:42]}  Bd6 {[%clk 0:01:13]} 20. h5 {[%clk 0:02:33]}  Qc7 {[%clk 0:01:03]} 21. Bf3 {[%clk 0:02:09]}  Ne5 {[%clk 0:00:59]} 22. Be4 {[%clk 0:01:54]}  f5 {[%clk 0:00:57]} 23. c5 {[%clk 0:01:53]}  Bxc5 {[%clk 0:00:34]} 24. Bf4 {[%clk 0:01:51]}  fxe4 {[%clk 0:00:21]} 25. Rxe4 {[%clk 0:01:52]}  Bd6 {[%clk 0:00:20]} 26. Bxe5 {[%clk 0:01:52]}  Bxh5 {[%clk 0:00:21]} 27. Rc1 {[%clk 0:01:52]}  Qd7 {[%clk 0:00:19]} 28. Bxd6 {[%clk 0:01:52]}  Qxd6 {[%clk 0:00:20]} 29. Rxe6 {[%clk 0:01:52]}  Qf8 {[%clk 0:00:19]} 30. Qe5 {[%clk 0:01:48]}  Bf7 {[%clk 0:00:18]} 31. Re7 {[%clk 0:01:46]}  Re8 {[%clk 0:00:18]} 32. Rcc7 {[%clk 0:01:47]}  Rxe7 {[%clk 0:00:16]} 33. Rxe7 {[%clk 0:01:47]}  Re8 {[%clk 0:00:11]} 34. Rxe8 {[%clk 0:01:47]}  Bxe8 {[%clk 0:00:07]} 35. Qd5+ {[%clk 0:01:45]}  Kh8 {[%clk 0:00:06]} 36. Qxd4 {[%clk 0:01:44]}  Bc6 {[%clk 0:00:07]} 37. Qe3 {[%clk 0:01:40]}  Qf6 {[%clk 0:00:04]} 38. d4 {[%clk 0:01:39]}  Qf5 {[%clk 0:00:05]} 39. Nf1 {[%clk 0:01:20]}  Qd5 {[%clk 0:00:03]} 40. f3 {[%clk 0:01:20]}  Qb5 {[%clk 0:00:01]} 41. Qf2 {[%clk 0:01:18]}  Qd3 {[%clk 0:00:01]} 42. Kg2 {[%clk 0:01:16]}  Qf5 {[%clk 0:00:01]} 43. Ne3 {[%clk 0:01:15]}  Qb5 {[%clk 0:00:01]} 44. Qd2 {[%clk 0:01:15]}  Qg5 {[%clk 0:00:01]} 45. Qd3 {[%clk 0:01:13]}  Bd7 {[%clk 0:00:01]} 46. d5 {[%clk 0:01:13]}  Qf6 {[%clk 0:00:02]} 47. Qd2 {[%clk 0:01:12]}  Qd6 {[%clk 0:00:01]} 48. Nc4 {[%clk 0:01:12]}  Qc5 {[%clk 0:00:02]} 49. Ne5 {[%clk 0:01:13]}  Bb5 {[%clk 0:00:02]} 50. Ng6+ {[%clk 0:01:11]}  Kh7 {[%clk 0:00:02]} 51. Nf4 {[%clk 0:01:12]}  g5 {[%clk 0:00:02]} 52. Ne6 {[%clk 0:01:10]}  Qc4 {[%clk 0:00:02]} 53. Nd4 {[%clk 0:01:03]}  Qf1+ {[%clk 0:00:02]} 54. Kh2 {[%clk 0:01:03]}  Bc4 {[%clk 0:00:03]} 55. Qc2+ {[%clk 0:00:55]}  Bd3 {[%clk 0:00:02]} 56. Qg2 {[%clk 0:00:50]}  Qd1 {[%clk 0:00:01]} 57. d6 {[%clk 0:00:48]}  Bg6 {[%clk 0:00:01]} 58. Qf2 {[%clk 0:00:46]}  Qd3 {[%clk 0:00:01]} 59. d7 {[%clk 0:00:46]}  g4 {[%clk 0:00:01]} 60. d8=Q {[%clk 0:00:46]}  gxf3 {[%clk 0:00:01]} 61. Qe7+ {[%clk 0:00:46]}  Kh8 {[%clk 0:00:02]} 62. Ne6 {[%clk 0:00:46]}  Qf5 {[%clk 0:00:01]} 63. Qg7# {[%clk 0:00:47]} 1-0


[Site "https://www.chess.com"]

[Event "Titled Tuesday Blitz April 18 Early 2023"]
[White "Narayanan.S.L"]
[Black "Kosteniuk, Alexandra"]
[WhiteFideId "5058422"]
[BlackFideId "4128125"]
[WhiteElo "2547"]
[BlackElo "2453"]
[Result "1-0"]
[Round "04"]
[TimeControl "180+2"]
[Date "2023.04.18"]
[WhiteClock "0:00:25"]
[BlackClock "0:00:01"]

1. d4 {[%clk 0:03:00]}  f5 {[%clk 0:02:59]} 2. Nc3 {[%clk 0:02:58]}  Nf6 {[%clk 0:02:59]} 3. Bg5 {[%clk 0:02:58]}  d5 {[%clk 0:02:59]} 4. Bxf6 {[%clk 0:02:58]}  exf6 {[%clk 0:02:58]} 5. e3 {[%clk 0:02:59]}  c6 {[%clk 0:02:54]} 6. Nf3 {[%clk 0:02:58]}  Bb4 {[%clk 0:02:49]} 7. Bd3 {[%clk 0:02:53]}  Be6 {[%clk 0:02:46]} 8. O-O {[%clk 0:02:52]}  Nd7 {[%clk 0:02:42]} 9. Ne2 {[%clk 0:02:51]}  g6 {[%clk 0:02:27]} 10. c3 {[%clk 0:02:49]}  Bd6 {[%clk 0:02:26]} 11. Qc2 {[%clk 0:02:49]}  Qc7 {[%clk 0:02:26]} 12. c4 {[%clk 0:02:49]}  dxc4 {[%clk 0:02:14]} 13. Bxc4 {[%clk 0:02:49]}  Bxc4 {[%clk 0:02:14]} 14. Qxc4 {[%clk 0:02:50]}  Nb6 {[%clk 0:02:14]} 15. Qb3 {[%clk 0:02:49]}  Qf7 {[%clk 0:02:13]} 16. Qc2 {[%clk 0:02:48]}  O-O {[%clk 0:02:09]} 17. Rfc1 {[%clk 0:02:47]}  Nd5 {[%clk 0:02:07]} 18. Nc3 {[%clk 0:02:47]}  Rfe8 {[%clk 0:02:04]} 19. Nxd5 {[%clk 0:02:47]}  Qxd5 {[%clk 0:02:04]} 20. Nd2 {[%clk 0:01:58]}  f4 {[%clk 0:02:04]} 21. e4 {[%clk 0:01:59]}  Qxd4 {[%clk 0:02:00]} 22. Rd1 {[%clk 0:01:59]}  Bf8 {[%clk 0:01:12]} 23. Qb3+ {[%clk 0:01:54]}  Kh8 {[%clk 0:01:12]} 24. Qxb7 {[%clk 0:01:54]}  Bc5 {[%clk 0:00:57]} 25. Qxc6 {[%clk 0:01:52]}  Qxf2+ {[%clk 0:00:57]} 26. Kh1 {[%clk 0:01:52]}  Be7 {[%clk 0:00:49]} 27. Nf3 {[%clk 0:01:48]}  Qxb2 {[%clk 0:00:43]} 28. h3 {[%clk 0:01:48]}  Rac8 {[%clk 0:00:41]} 29. Qa4 {[%clk 0:01:44]}  Qa3 {[%clk 0:00:40]} 30. Qd7 {[%clk 0:01:42]}  Rcd8 {[%clk 0:00:34]} 31. Qc6 {[%clk 0:01:29]}  Rc8 {[%clk 0:00:33]} 32. Qb5 {[%clk 0:01:24]}  Red8 {[%clk 0:00:31]} 33. e5 {[%clk 0:01:20]}  Qc5 {[%clk 0:00:29]} 34. Qe2 {[%clk 0:01:20]}  Rxd1+ {[%clk 0:00:28]} 35. Rxd1 {[%clk 0:01:19]}  Rd8 {[%clk 0:00:28]} 36. Re1 {[%clk 0:01:12]}  Kg7 {[%clk 0:00:21]} 37. Qa6 {[%clk 0:01:08]}  Qb6 {[%clk 0:00:20]} 38. Qc4 {[%clk 0:01:06]}  f5 {[%clk 0:00:15]} 39. Qxf4 {[%clk 0:01:05]}  Qb4 {[%clk 0:00:14]} 40. Qc1 {[%clk 0:01:03]}  Rd3 {[%clk 0:00:13]} 41. e6 {[%clk 0:01:01]}  Rc3 {[%clk 0:00:12]} 42. Qd1 {[%clk 0:01:00]}  Qf4 {[%clk 0:00:10]} 43. Qd7 {[%clk 0:00:50]}  Rc7 {[%clk 0:00:10]} 44. Qd1 {[%clk 0:00:42]}  Qg3 {[%clk 0:00:10]} 45. Qd4+ {[%clk 0:00:37]}  Bf6 {[%clk 0:00:10]} 46. Qe3 {[%clk 0:00:35]}  Rc2 {[%clk 0:00:09]} 47. Rg1 {[%clk 0:00:33]}  Qd6 {[%clk 0:00:07]} 48. Qxa7+ {[%clk 0:00:33]}  Be7 {[%clk 0:00:05]} 49. Re1 {[%clk 0:00:25]}  Kf6 {[%clk 0:00:05]} 50. Qe3 {[%clk 0:00:24]}  h6 {[%clk 0:00:03]} 51. Qxh6 {[%clk 0:00:24]}  Rxa2 {[%clk 0:00:01]} 52. Qh8# {[%clk 0:00:25]} 1-0


[Site "https://www.chess.com"]

[Event "Titled Tuesday Blitz April 18 Early 2023"]
[White "Aaditya Dhingra"]
[Black "Kamsky, Gata"]
[WhiteFideId "25678191"]
[BlackFideId "2000024"]
[WhiteElo "2083"]
[BlackElo "2660"]
[Result "1/2-1/2"]
[Round "04"]
[TimeControl "180+2"]
[Date "2023.04.18"]
[WhiteClock "0:01:48"]
[BlackClock "0:00:56"]

1. c4 {[%clk 0:03:00]}  Nf6 {[%clk 0:02:55]} 2. Nc3 {[%clk 0:03:00]}  g6 {[%clk 0:02:55]} 3. g3 {[%clk 0:02:58]}  Bg7 {[%clk 0:02:54]} 4. Bg2 {[%clk 0:02:59]}  O-O {[%clk 0:02:54]} 5. Nf3 {[%clk 0:02:59]}  c6 {[%clk 0:02:54]} 6. O-O {[%clk 0:02:58]}  d5 {[%clk 0:02:54]} 7. cxd5 {[%clk 0:02:58]}  cxd5 {[%clk 0:02:53]} 8. d4 {[%clk 0:02:58]}  e6 {[%clk 0:02:52]} 9. Bf4 {[%clk 0:02:57]}  Nc6 {[%clk 0:02:48]} 10. Rc1 {[%clk 0:02:57]}  Bd7 {[%clk 0:02:47]} 11. Ne5 {[%clk 0:02:57]}  Qe7 {[%clk 0:02:45]} 12. Nxc6 {[%clk 0:02:55]}  Bxc6 {[%clk 0:02:45]} 13. Qd3 {[%clk 0:02:54]}  Rfd8 {[%clk 0:02:40]} 14. Rfd1 {[%clk 0:02:53]}  Rac8 {[%clk 0:02:38]} 15. Qd2 {[%clk 0:02:51]}  Ne4 {[%clk 0:02:14]} 16. Nxe4 {[%clk 0:02:48]}  dxe4 {[%clk 0:02:13]} 17. Qe3 {[%clk 0:02:47]}  f5 {[%clk 0:01:55]} 18. Bg5 {[%clk 0:02:43]}  Bf6 {[%clk 0:01:54]} 19. Bxf6 {[%clk 0:02:43]}  Qxf6 {[%clk 0:01:54]} 20. Qc3 {[%clk 0:02:40]}  Qf8 {[%clk 0:01:42]} 21. Qb3 {[%clk 0:02:26]}  Bd5 {[%clk 0:01:41]} 22. Qa4 {[%clk 0:02:26]}  Rxc1 {[%clk 0:01:31]} 23. Rxc1 {[%clk 0:02:26]}  Rc8 {[%clk 0:01:32]} 24. Qd1 {[%clk 0:02:15]}  Rc6 {[%clk 0:01:28]} 25. Rxc6 {[%clk 0:02:14]}  Bxc6 {[%clk 0:01:27]} 26. Qd2 {[%clk 0:02:07]}  Qd6 {[%clk 0:01:22]} 27. e3 {[%clk 0:02:07]}  Bd5 {[%clk 0:01:19]} 28. a3 {[%clk 0:02:01]}  Qc7 {[%clk 0:01:16]} 29. Bf1 {[%clk 0:02:01]}  Kf7 {[%clk 0:01:14]} 30. h4 {[%clk 0:02:01]}  h6 {[%clk 0:01:13]} 31. Qb4 {[%clk 0:02:00]}  b6 {[%clk 0:01:09]} 32. Qc3 {[%clk 0:01:58]}  Qxc3 {[%clk 0:01:07]} 33. bxc3 {[%clk 0:01:59]}  g5 {[%clk 0:01:07]} 34. hxg5 {[%clk 0:01:57]}  hxg5 {[%clk 0:01:07]} 35. Be2 {[%clk 0:01:58]}  Ke7 {[%clk 0:01:05]} 36. Kf1 {[%clk 0:01:57]}  Kd6 {[%clk 0:01:05]} 37. Ke1 {[%clk 0:01:56]}  Bb3 {[%clk 0:01:04]} 38. c4 {[%clk 0:01:53]}  Ba4 {[%clk 0:00:58]} 39. Kd2 {[%clk 0:01:53]}  a5 {[%clk 0:00:57]} 40. Kc3 {[%clk 0:01:53]}  Be8 {[%clk 0:00:57]} 41. Bd1 {[%clk 0:01:47]}  Bd7 {[%clk 0:00:55]} 42. Be2 {[%clk 0:01:47]}  Be8 {[%clk 0:00:56]} 43. Bd1 {[%clk 0:01:47]}  Bd7 {[%clk 0:00:56]} 44. Be2 {[%clk 0:01:48]}  Be8 {[%clk 0:00:56]} 1/2-1/2


[Site "https://www.chess.com"]

[Event "Titled Tuesday Blitz April 18 Early 2023"]
[White "Poliakova, Varvara"]
[Black "Drygalov, Andrey"]
[WhiteFideId "13518313"]
[BlackFideId "24171735"]
[WhiteElo "2075"]
[BlackElo "2466"]
[Result "0-1"]
[Round "04"]
[TimeControl "180+2"]
[Date "2023.04.18"]
[WhiteClock "0:00:13"]
[BlackClock "0:00:06"]

1. e4 {[%clk 0:03:00]}  c5 {[%clk 0:02:57]} 2. Nf3 {[%clk 0:03:00]}  d6 {[%clk 0:02:57]} 3. d4 {[%clk 0:03:01]}  cxd4 {[%clk 0:02:58]} 4. Nxd4 {[%clk 0:03:02]}  Nf6 {[%clk 0:02:59]} 5. Nc3 {[%clk 0:03:01]}  a6 {[%clk 0:02:59]} 6. h3 {[%clk 0:03:00]}  e5 {[%clk 0:02:59]} 7. Nde2 {[%clk 0:03:00]}  h5 {[%clk 0:03:00]} 8. g3 {[%clk 0:03:00]}  Be7 {[%clk 0:03:00]} 9. Bg2 {[%clk 0:02:59]}  b5 {[%clk 0:03:00]} 10. Be3 {[%clk 0:02:54]}  Be6 {[%clk 0:02:40]} 11. O-O {[%clk 0:02:50]}  Nbd7 {[%clk 0:02:39]} 12. Nd5 {[%clk 0:02:45]}  Nxd5 {[%clk 0:02:39]} 13. exd5 {[%clk 0:02:46]}  Bf5 {[%clk 0:02:40]} 14. c3 {[%clk 0:02:43]}  O-O {[%clk 0:02:38]} 15. Kh2 {[%clk 0:02:40]}  Bg5 {[%clk 0:02:36]} 16. Qd2 {[%clk 0:02:37]}  Bxe3 {[%clk 0:02:27]} 17. fxe3 {[%clk 0:02:37]}  Bg6 {[%clk 0:02:21]} 18. e4 {[%clk 0:02:35]}  Nc5 {[%clk 0:02:17]} 19. Qe3 {[%clk 0:02:28]}  a5 {[%clk 0:02:16]} 20. Rf2 {[%clk 0:02:24]}  b4 {[%clk 0:02:13]} 21. c4 {[%clk 0:02:20]}  a4 {[%clk 0:02:11]} 22. Raf1 {[%clk 0:02:18]}  Qb6 {[%clk 0:02:00]} 23. Ng1 {[%clk 0:02:12]}  Rab8 {[%clk 0:01:59]} 24. Re1 {[%clk 0:02:07]}  Nd3 {[%clk 0:01:44]} 25. Qxd3 {[%clk 0:02:01]}  Qxf2 {[%clk 0:01:44]} 26. Re2 {[%clk 0:02:01]}  Qd4 {[%clk 0:01:26]} 27. Qxd4 {[%clk 0:02:00]}  exd4 {[%clk 0:01:27]} 28. Nf3 {[%clk 0:01:57]}  d3 {[%clk 0:01:25]} 29. Rd2 {[%clk 0:01:57]}  Bxe4 {[%clk 0:01:25]} 30. Nd4 {[%clk 0:01:56]}  Rfe8 {[%clk 0:01:15]} 31. Bxe4 {[%clk 0:01:55]}  Rxe4 {[%clk 0:01:14]} 32. Rxd3 {[%clk 0:01:55]}  Rc8 {[%clk 0:01:14]} 33. b3 {[%clk 0:01:54]}  axb3 {[%clk 0:01:14]} 34. axb3 {[%clk 0:01:55]}  Ra8 {[%clk 0:01:12]} 35. Kg2 {[%clk 0:01:53]}  Re1 {[%clk 0:00:54]} 36. Kf2 {[%clk 0:01:51]}  Rb1 {[%clk 0:00:53]} 37. Ke3 {[%clk 0:01:49]}  g6 {[%clk 0:00:53]} 38. h4 {[%clk 0:01:47]}  Kf8 {[%clk 0:00:53]} 39. Kf4 {[%clk 0:01:46]}  Rf1+ {[%clk 0:00:50]} 40. Nf3 {[%clk 0:01:38]}  Re8 {[%clk 0:00:47]} 41. c5 {[%clk 0:01:35]}  dxc5 {[%clk 0:00:47]} 42. d6 {[%clk 0:01:35]}  Rd8 {[%clk 0:00:43]} 43. Ke5 {[%clk 0:01:33]}  Rf2 {[%clk 0:00:41]} 44. Kd5 {[%clk 0:01:32]}  Rc2 {[%clk 0:00:27]} 45. Ne5 {[%clk 0:01:30]}  Rc3 {[%clk 0:00:27]} 46. Rd2 {[%clk 0:01:29]}  Rxb3 {[%clk 0:00:20]} 47. Nc6 {[%clk 0:01:29]}  Rd7 {[%clk 0:00:18]} 48. Ne5 {[%clk 0:01:28]}  Ra7 {[%clk 0:00:15]} 49. d7 {[%clk 0:01:27]}  Rxd7+ {[%clk 0:00:15]} 50. Nxd7+ {[%clk 0:01:28]}  Kg7 {[%clk 0:00:15]} 51. Nxc5 {[%clk 0:01:21]}  Rxg3 {[%clk 0:00:15]} 52. Rd4 {[%clk 0:01:17]}  Rg4 {[%clk 0:00:15]} 53. Nd3 {[%clk 0:01:16]}  b3 {[%clk 0:00:13]} 54. Kc4 {[%clk 0:01:12]}  Kh6 {[%clk 0:00:09]} 55. Kc3 {[%clk 0:01:04]}  f5 {[%clk 0:00:07]} 56. Rd8 {[%clk 0:00:57]}  Rxh4 {[%clk 0:00:07]} 57. Kxb3 {[%clk 0:00:56]}  Re4 {[%clk 0:00:08]} 58. Kc3 {[%clk 0:00:53]}  h4 {[%clk 0:00:08]} 59. Kd2 {[%clk 0:00:52]}  Kg5 {[%clk 0:00:08]} 60. Nf2 {[%clk 0:00:49]}  Re7 {[%clk 0:00:09]} 61. Rd6 {[%clk 0:00:44]}  Kh5 {[%clk 0:00:07]} 62. Nd3 {[%clk 0:00:41]}  g5 {[%clk 0:00:07]} 63. Rd5 {[%clk 0:00:40]}  Kg4 {[%clk 0:00:08]} 64. Nf2+ {[%clk 0:00:38]}  Kf4 {[%clk 0:00:06]} 65. Nh3+ {[%clk 0:00:37]}  Ke4 {[%clk 0:00:03]} 66. Rd8 {[%clk 0:00:32]}  g4 {[%clk 0:00:03]} 67. Ng1 {[%clk 0:00:29]}  Kf4 {[%clk 0:00:03]} 68. Rd4+ {[%clk 0:00:27]}  Kg5 {[%clk 0:00:03]} 69. Rd8 {[%clk 0:00:26]}  h3 {[%clk 0:00:04]} 70. Rh8 {[%clk 0:00:24]}  Kf4 {[%clk 0:00:04]} 71. Kd3 {[%clk 0:00:21]}  Kg3 {[%clk 0:00:04]} 72. Ne2+ {[%clk 0:00:20]}  Kf2 {[%clk 0:00:05]} 73. Nf4 {[%clk 0:00:19]}  Kf3 {[%clk 0:00:05]} 74. Nxh3 {[%clk 0:00:17]}  gxh3 {[%clk 0:00:05]} 75. Rxh3+ {[%clk 0:00:18]}  Kg4 {[%clk 0:00:05]} 76. Rh8 {[%clk 0:00:15]}  f4 {[%clk 0:00:06]} 77. Rg8+ {[%clk 0:00:14]}  Kf3 {[%clk 0:00:06]} 78. Kd2 {[%clk 0:00:12]}  Kf2 {[%clk 0:00:06]} 79. Rf8 {[%clk 0:00:13]}  f3 {[%clk 0:00:07]} 80. Rf7 {[%clk 0:00:13]}  Rxf7 {[%clk 0:00:06]} 0-1


[Site "https://www.chess.com"]